bitfinex/quotes_BTCUSD_20250206
["timestamp","ask_amount","ask_price","bid_price","bid_amount"]
[1738806274621,0.15876193,97062.0,97056.0,0.10250365]
[1738806274843,0.154541,97062.0,97056.0,0.10250365]
[1738806275093,0.00422083,97061.0,97056.0,0.25705265]
[1738806275289,0.00422083,97061.0,97057.0,0.0756]
[1738806275572,0.154534,97066.0,97058.0,0.10250365]
[1738806275774,0.14317909,97070.0,97058.0,0.10250365]
[1738806276014,0.154545,97059.0,97058.0,0.10250365]
[1738806276236,0.154543,97061.0,97058.0,0.10250365]
[1738806276486,0.00422062,97059.0,97058.0,0.10250365]
[1738806276678,0.154545,97059.0,97058.0,0.10250365]
[1738806276921,0.15876562,97059.0,97058.0,0.10350365]
[1738806278274,0.15876562,97059.0,97058.0,0.10250365]
[1738806278774,0.15876562,97059.0,97058.0,0.10350365]
[1738806279009,0.15876562,97059.0,97058.0,0.10250365]
[1738806279010,0.22064837,97059.0,97058.0,0.10250365]
[1738806279245,0.22064837,97059.0,97058.0,0.001]
[1738806279483,0.37064837,97059.0,97058.0,0.001]
[1738806279958,0.37064837,97059.0,97051.0,0.00068942]
[1738806279959,0.15,97058.0,97051.0,0.00068942]
[1738806280225,0.304556,97052.0,97051.0,0.00068942]
[1738806280530,0.312916,97052.0,97051.0,0.00068942]
[1738806280775,0.31711346,97052.0,97051.0,0.00068942]
[1738806281973,0.31711346,97052.0,97051.0,0.00168942]
[1738806283683,0.81711346,97052.0,97051.0,0.00168942]
[1738806283919,0.91961711,97052.0,97051.0,0.00168942]
[1738806284904,0.91961711,97052.0,97051.0,0.00068942]
[1738806290067,0.80875346,97052.0,97051.0,0.00068942]
[1738806291358,0.80875346,97052.0,97051.0,0.00168942]
[1738806291573,0.80875346,97052.0,97051.0,0.00068942]
[1738806291918,0.80875346,97052.0,97051.0,0.00168942]
[1738806294058,0.80875346,97052.0,97051.0,0.00068942]
[1738806294266,0.91125711,97052.0,97051.0,0.00168942]
[1738806294714,0.91125711,97052.0,97051.0,0.00068942]
[1738806294902,0.91125711,97052.0,97051.0,0.00168942]
[1738806295508,0.80875346,97052.0,97051.0,0.00168942]
[1738806297198,0.80875346,97052.0,97051.0,0.00068942]
[1738806297600,0.80875346,97052.0,97051.0,0.00168942]
[1738806300724,0.80875346,97052.0,97051.0,0.00068942]
[1738806301127,0.80875346,97052.0,97051.0,0.00168942]
[1738806301327,1.46626076,97052.0,97051.0,0.00168942]
[1738806301527,0.16,97051.0,97050.0,9.1e-07]
[1738806301748,0.34480365,97051.0,97050.0,5.5e-07]
[1738806301950,0.34897162,97051.0,97050.0,5.5e-07]
[1738806302552,0.67407162,97051.0,97050.0,5.5e-07]
[1738806302749,0.96367527,97051.0,97050.0,5.5e-07]
[1738806302953,0.304605,97021.0,97011.0,0.0002]
[1738806303195,0.304605,97021.0,97020.0,0.00035391]
[1738806303429,0.30876792,97021.0,97020.0,0.00035391]
[1738806303627,0.41127157,97021.0,97020.0,0.00035391]
[1738806304564,0.41127157,97021.0,97020.0,0.00135391]
[1738806304906,0.41127157,97021.0,97020.0,0.00035391]
[1738806305113,0.41127157,97021.0,97020.0,0.00135391]
[1738806305316,0.42141246,97021.0,97020.0,0.00135391]
[1738806305919,0.31890881,97021.0,97020.0,0.00135391]
[1738806307256,0.00416292,97021.0,97020.0,0.00135391]
[1738806307470,0.15876792,97021.0,97020.0,0.00135391]
[1738806307592,0.154605,97021.0,97020.0,0.00135391]
[1738806307800,0.15876146,97021.0,97020.0,0.00135391]
[1738806308194,0.21586441,97021.0,97020.0,0.00135391]
[1738806309660,0.15876146,97021.0,97020.0,0.00135391]
[1738806311857,0.16903868,97021.0,97020.0,0.00135391]
[1738806313096,0.31903868,97021.0,97020.0,0.00135391]
[1738806317816,0.64413868,97021.0,97020.0,0.00135391]
[1738806318161,0.83454233,97021.0,97020.0,9.1e-07]
[1738806318428,0.93704598,97021.0,97020.0,9.1e-07]
[1738806318637,0.01,97017.0,97011.0,0.00016091]
[1738806318843,0.43992,97012.0,97011.0,0.00016091]
[1738806319045,0.54242365,97012.0,97011.0,9.1e-07]
[1738806319251,0.314624,97009.0,97008.0,7.7e-07]
[1738806319463,0.5279913,97009.0,97008.0,7.7e-07]
[1738806319671,0.5279913,97009.0,96997.0,0.03333334]
[1738806319672,0.441042,96998.0,96997.0,0.03333334]
[1738806319859,0.441042,96998.0,96982.0,0.09192473]
[1738806319860,0.304666,96983.0,96982.0,0.09192473]
[1738806320063,0.40716965,96983.0,96982.0,0.09206451]
[1738806320274,0.49326355,96983.0,96982.0,0.09206451]
[1738806321120,0.50372586,96983.0,96982.0,0.09206451]
[1738806321337,0.92172586,96983.0,96982.0,0.09206451]
[1738806322192,0.64436214,96983.0,96982.0,0.09206451]
[1738806323335,0.64636214,96983.0,96982.0,0.00013978]
[1738806323577,0.64436214,96983.0,96982.0,0.00013978]
[1738806324003,0.64436214,96983.0,96982.0,0.00113978]
[1738806324430,1.14436214,96983.0,96982.0,0.00113978]
[1738806324634,1.24686579,96983.0,96982.0,0.00113978]
[1738806324986,1.24686579,96983.0,96982.0,0.18034343]
[1738806324987,0.50413362,96983.0,96982.0,0.18034343]
[1738806325199,0.50413362,96983.0,96982.0,0.35801043]
[1738806326315,0.50413362,96983.0,96982.0,0.35701043]
[1738806327167,1.00413362,96983.0,96982.0,0.35701043]
[1738806327370,1.00413362,96983.0,96982.0,0.50701043]
[1738806327613,0.99781981,96983.0,96982.0,0.50701043]
[1738806327811,0.73371238,96983.0,96982.0,0.44031043]
[1738806328021,0.69160036,96983.0,96982.0,0.44031043]
[1738806328237,0.59675993,96983.0,96982.0,0.45031043]
[1738806328458,0.46186624,96983.0,96982.0,0.48632596]
[1738806328666,0.46567974,96983.0,96982.0,0.48209806]
[1738806330723,0.46186624,96983.0,96982.0,0.48209806]
[1738806331325,0.46186624,96983.0,96982.0,1.12236126]
[1738806332832,0.46186624,96983.0,96982.0,1.12246826]
[1738806334511,0.17752073,96983.0,96982.0,1.12937796]
[1738806334713,0.08086734,96983.0,96982.0,1.15347096]
[1738806334913,0.07012743,96983.0,96982.0,1.15347096]
[1738806335312,0.04950543,96983.0,96982.0,1.15347096]
[1738806335514,0.02888343,96983.0,96982.0,1.15347096]
[1738806335687,0.00826143,96983.0,96982.0,1.15347096]
[1738806336093,4.3e-07,96983.0,96982.0,1.15347096]
[1738806336961,4.3e-07,96983.0,96982.0,1.14656126]
[1738806340485,4.3e-07,96983.0,96982.0,1.12246826]
[1738806340755,4.3e-07,96983.0,96982.0,1.14708814]
[1738806343712,0.08291659,97015.0,97014.0,0.304616]
[1738806343928,0.08291659,97015.0,97014.0,0.55918239]
[1738806344141,0.08291659,97047.0,97020.0,0.304607]
[1738806344353,0.08291659,97047.0,97036.0,0.327581]
[1738806344565,0.08291659,97047.0,97046.0,0.327565]
[1738806344769,0.0828,97051.0,97047.0,0.173]
[1738806344971,0.0828,97051.0,97050.0,0.177559]
[1738806345088,0.08293938,97051.0,97050.0,0.28006265]
[1738806346805,0.00013938,97051.0,97050.0,0.52842585]
[1738806347219,0.00013938,97051.0,97050.0,0.54869536]
[1738806348962,0.00013938,97051.0,97050.0,0.53869536]
[1738806350827,0.00013938,97051.0,97050.0,0.54869536]
[1738806352710,0.00013938,97051.0,97050.0,0.53869536]
[1738806353111,0.00013938,97051.0,97050.0,1.09059536]
[1738806353374,0.00013938,97051.0,97050.0,1.10059536]
[1738806353793,0.00013938,97051.0,97050.0,1.09059536]
[1738806354408,0.08172471,97080.0,97076.0,0.304518]
[1738806354595,0.08172471,97080.0,97076.0,0.43002165]
[1738806354726,0.04962607,97077.0,97076.0,0.25250365]
[1738806354940,0.0457,97077.0,97076.0,0.25250365]
[1738806357242,0.04962826,97077.0,97076.0,0.25250365]
[1738806357789,0.04962826,97077.0,97076.0,0.40702165]
[1738806358174,0.0457,97077.0,97076.0,0.40702165]
[1738806359377,0.0457,97077.0,97076.0,0.43002165]
[1738806359615,0.08172471,97080.0,97079.0,0.177513]
[1738806359785,0.08172471,97080.0,97079.0,0.28001665]
[1738806363249,0.00022471,97080.0,97079.0,0.46167351]
[1738806366545,0.00022471,97080.0,97079.0,0.48167351]
[1738806366775,0.00022471,97080.0,97079.0,0.53155549]
[1738806367107,0.00022471,97080.0,97079.0,1.17181869]
[1738806369453,0.08291659,97109.0,97108.0,0.154467]
[1738806369631,0.08291659,97109.0,97108.0,0.27997065]
[1738806369811,0.00046584,97109.0,97108.0,0.27997065]
[1738806370398,0.00046584,97109.0,97108.0,0.42997065]
[1738806370810,0.00046584,97109.0,97108.0,0.46156815]
[1738806370999,0.00046584,97109.0,97108.0,0.47156815]
[1738806371592,0.00046584,97109.0,97108.0,0.52031189]
[1738806372207,0.00046584,97109.0,97108.0,0.50364522]
[1738806372790,0.00046584,97109.0,97108.0,0.46520308]
[1738806373180,0.12896584,97109.0,97108.0,0.26330398]
[1738806373588,0.00046584,97109.0,97108.0,0.41330398]
[1738806373787,0.00046584,97109.0,97108.0,0.48333395]
[1738806375982,0.00046584,97109.0,97108.0,0.58169715]
[1738806376120,0.00046584,97109.0,97108.0,0.54325501]
[1738806378068,0.08186584,97109.0,97108.0,0.39325501]
[1738806378277,0.12826584,97109.0,97108.0,0.20086685]
[1738806378476,0.13225785,97109.0,97108.0,0.20086685]
[1738806378701,0.28672285,97109.0,97108.0,0.10250365]
[1738806379137,0.28682975,97109.0,97108.0,0.10250365]
[1738806379356,0.13236475,97109.0,97108.0,0.10250365]
[1738806382230,0.13236475,97109.0,97108.0,0.25697065]
[1738806382611,0.12837274,97109.0,97108.0,0.25697065]
[1738806383600,0.12837274,97109.0,97108.0,0.27997065]
[1738806383821,0.00057274,97109.0,97108.0,0.46168715]
[1738806387190,0.00022471,97119.0,97118.0,0.327451]
[1738806387406,0.00036437,97119.0,97118.0,0.46167115]
[1738806390826,0.12506437,97119.0,97118.0,0.13422015]
[1738806391036,0.12855618,97119.0,97118.0,0.13422015]
[1738806391239,0.12855618,97119.0,97118.0,0.10250365]
[1738806392725,0.12506437,97119.0,97118.0,0.10250365]
[1738806393076,0.12905513,97119.0,97118.0,0.10250365]
[1738806395511,0.0795,97118.0,97098.0,0.00836863]
[1738806395736,0.1254,97110.0,97109.0,0.13434296]
[1738806396209,0.12939076,97110.0,97109.0,0.13434296]
[1738806400590,0.1254,97110.0,97109.0,0.13434296]
[1738806401446,0.00036437,97119.0,97109.0,0.13434296]
[1738806401447,0.00036437,97119.0,97118.0,0.154451]
[1738806401645,0.00036437,97119.0,97118.0,0.28879396]
[1738806408093,0.00036437,97119.0,97118.0,0.13434296]
[1738806408290,0.00434962,97119.0,97118.0,0.13434296]
[1738806409148,0.00036437,97119.0,97118.0,0.13434296]
[1738806409354,0.0043514,97119.0,97118.0,0.13434296]
[1738806410225,0.1588004,97119.0,97118.0,0.13434296]
[1738806410430,0.2401004,97119.0,97118.0,0.13434296]
[1738806411181,0.0856514,97119.0,97118.0,0.13434296]
[1738806411879,0.08166437,97119.0,97118.0,0.13434296]
[1738806412079,0.0856514,97119.0,97118.0,0.13434296]
[1738806412773,0.0043514,97119.0,97118.0,0.28879396]
[1738806413186,0.00036437,97119.0,97118.0,0.28879396]
[1738806414536,0.00036437,97119.0,97118.0,0.43879396]
[1738806416376,0.00036437,97119.0,97118.0,0.44689856]
[1738806420205,0.13306437,97119.0,97118.0,0.13434296]
[1738806420616,0.13705266,97119.0,97118.0,0.13434296]
[1738806420870,0.13705266,97119.0,97118.0,0.10250365]
[1738806421328,0.13306437,97119.0,97118.0,0.10250365]
[1738806421455,0.28751337,97119.0,97118.0,0.10250365]
[1738806421658,0.0816,97111.0,97109.0,0.00022428]
[1738806421932,0.0816,97111.0,97110.0,0.13432571]
[1738806423287,0.127,97111.0,97110.0,0.03182206]
[1738806423465,0.232864,97110.0,97109.0,0.00022428]
[1738806423666,0.063867,97110.0,97071.0,0.11899266]
[1738806423892,0.0784,97086.0,97074.0,0.10250365]
[1738806424326,0.0784,97086.0,97076.0,0.206024]
[1738806424529,0.0784,97086.0,97079.0,0.206017]
[1738806424733,0.0784,97086.0,97084.0,0.154504]
[1738806424909,0.0784,97086.0,97085.0,0.10250365]
[1738806425308,0.07853958,97086.0,97085.0,0.10250365]
[1738806426151,0.07853958,97086.0,97054.0,0.206069]
[1738806426152,0.14411844,97086.0,97065.0,0.256047]
[1738806426358,0.154516,97077.0,97071.0,0.13432058]
[1738806426534,0.15452,97075.0,97072.0,0.03181693]
[1738806426848,0.15452,97075.0,97073.0,0.10250365]
[1738806427050,0.360508,97085.0,97073.0,0.10250365]
[1738806427254,0.12373958,97086.0,97085.0,0.154503]
[1738806427440,0.12373958,97086.0,97085.0,0.25700665]
[1738806428188,0.00013958,97086.0,97085.0,0.25700665]
[1738806428602,0.00013958,97086.0,97085.0,0.2887733]
[1738806434252,0.00013958,97086.0,97085.0,0.4387733]
[1738806438398,0.00013958,97086.0,97085.0,0.5601365]
[1738806438659,0.00013958,97086.0,97085.0,0.56036078]
[1738806438890,0.00013958,97086.0,97085.0,1.11226078]
[1738806439199,0.0759,97117.0,97111.0,0.154462]
[1738806439457,0.0759,97117.0,97111.0,0.25696565]
[1738806439622,0.00395358,97112.0,97111.0,0.28871027]
[1738806439858,0.0759,97117.0,97116.0,0.154454]
[1738806439992,0.0759,97117.0,97116.0,0.10250365]
[1738806440815,0.07986481,97117.0,97116.0,0.10250365]
[1738806441037,0.08000377,97117.0,97116.0,0.10250365]
[1738806441248,0.12680377,97117.0,97116.0,0.10250365]
[1738806442297,0.12680377,97117.0,97116.0,0.12155386]
[1738806442956,0.19613712,97117.0,97116.0,0.01905021]
[1738806443200,0.0752,97115.0,97099.0,0.0983632]
[1738806443380,0.154459,97113.0,97100.0,0.10250365]
[1738806443580,0.154459,97113.0,97102.0,0.154475]
[1738806443800,0.00396423,97112.0,97109.0,0.154465]
[1738806443951,0.00396423,97112.0,97110.0,0.10250365]
[1738806444154,0.0752,97115.0,97111.0,0.15446]
[1738806444359,0.0752,97115.0,97112.0,0.10250365]
[1738806445393,0.0752,97115.0,97113.0,0.154458]
[1738806445766,0.04693896,97117.0,97114.0,0.10250365]
[1738806445974,0.04693896,97117.0,97115.0,0.154456]
[1738806446173,0.04693896,97117.0,97116.0,0.10250365]
[1738806447416,0.04693896,97117.0,97116.0,0.15206857]
[1738806447921,0.04193896,97117.0,97116.0,0.15206857]
[1738806449964,0.00022471,97119.0,97117.0,0.154452]
[1738806450112,0.00022471,97119.0,97118.0,0.10250365]
[1738806450686,0.00022471,97119.0,97118.0,0.28530331]
[1738806450903,0.00022471,97119.0,97118.0,0.28427368]
[1738806451475,0.0766,97132.0,97131.0,0.15443]
[1738806451656,0.08057339,97132.0,97131.0,0.25693365]
[1738806452156,0.0766,97132.0,97131.0,0.25693365]
[1738806452368,0.1232,97138.0,97137.0,0.154421]
[1738806452574,0.1232,97138.0,97137.0,0.25692465]
[1738806452775,0.1232,97138.0,97137.0,0.10250365]
[1738806453161,0.1232,97138.0,97137.0,0.15206857]
[1738806455572,0.12717482,97138.0,97137.0,0.15206857]
[1738806457039,0.12717482,97138.0,97137.0,0.30648957]
[1738806457215,0.1232,97138.0,97137.0,0.30648957]
[1738806457720,0.1232,97138.0,97137.0,0.15206857]
[1738806458483,0.12784491,97138.0,97137.0,0.15206857]
[1738806459783,0.12784491,97138.0,97137.0,0.18252017]
[1738806460866,0.1232,97138.0,97137.0,0.18252017]
[1738806461203,0.12784574,97138.0,97137.0,0.18252017]
[1738806461404,0.12784574,97138.0,97137.0,0.15206857]
[1738806465396,0.17665991,97138.0,97137.0,0.04956492]
[1738806465935,0.12784574,97138.0,97137.0,0.04956492]
[1738806466563,0.12784574,97138.0,97137.0,0.01906289]
[1738806468206,0.12784574,97138.0,97137.0,0.12156654]
[1738806468407,0.00464574,97138.0,97137.0,0.12156654]
[1738806468568,0.0762,97144.0,97137.0,0.62156654]
[1738806468770,0.0762,97144.0,97141.0,0.154413]
[1738806469069,0.00348907,97143.0,97142.0,0.10250365]
[1738806469276,0.0762,97144.0,97142.0,0.10250365]
[1738806469654,0.0762,97144.0,97142.0,0.25691465]
[1738806470445,0.0762,97144.0,97142.0,0.10250365]
[1738806470618,0.0762,97144.0,97143.0,0.04956046]
[1738806471033,0.10276975,97144.0,97143.0,0.04956046]
[1738806471387,0.15236975,97144.0,97143.0,0.04956046]
[1738806472131,0.15236975,97144.0,97143.0,0.01906289]
[1738806472561,0.1258,97144.0,97143.0,0.01906289]
[1738806473655,0.1258,97144.0,97143.0,0.04956046]
[1738806475061,0.1258,97144.0,97143.0,0.01906289]
[1738806475667,0.1245,97144.0,97143.0,0.01906289]
[1738806475911,0.12859011,97144.0,97143.0,0.01906289]
[1738806479296,0.13705825,97144.0,97143.0,0.01906289]
[1738806480754,0.154419,97138.0,97137.0,0.5]
[1738806481075,0.00348477,97138.0,97137.0,0.63432111]
[1738806481433,0.1246068,97144.0,97137.0,0.78874111]
[1738806481630,0.1246068,97144.0,97138.0,0.13432111]
[1738806481834,0.1246068,97144.0,97138.0,0.10250365]
[1738806482044,0.154416,97140.0,97138.0,0.10250365]
[1738806482248,0.1446271,97144.0,97137.0,0.51910118]
[1738806482249,0.154419,97138.0,97137.0,0.51910118]
[1738806482628,0.235019,97138.0,97137.0,0.51910118]
[1738806482837,0.281419,97138.0,97137.0,0.51910118]
[1738806483034,0.35275051,97138.0,97137.0,0.51910118]
[1738806483442,0.281419,97138.0,97137.0,0.51910118]
[1738806484273,0.281419,97138.0,97137.0,0.5]
[1738806484274,0.2902564,97138.0,97137.0,0.5]
[1738806485028,0.46460858,97138.0,97137.0,0.5]
[1738806485741,0.47460858,97138.0,97137.0,0.5]
[1738806487447,0.75011223,97138.0,97137.0,0.3719]
[1738806487651,0.85261588,97138.0,97137.0,0.36089103]
[1738806489241,0.85261588,97138.0,97137.0,0.31680972]
[1738806489437,0.85261588,97138.0,97137.0,3.2e-07]
[1738806489641,0.286248,97120.0,97096.0,0.09156559]
[1738806490483,0.286248,97120.0,97088.0,0.154497]
[1738806490927,0.29025148,97120.0,97088.0,0.154497]
[1738806491335,0.29025148,97120.0,97085.0,0.00022428]
[1738806491536,0.29025148,97120.0,97102.0,0.205968]
[1738806491829,0.15845148,97120.0,97102.0,0.205968]
[1738806492249,0.15845148,97120.0,97104.0,0.154472]
[1738806492478,0.15845148,97120.0,97105.0,0.154471]
[1738806492865,0.22432314,97120.0,97098.0,0.154481]
[1738806493069,0.15845148,97120.0,97100.0,0.205972]
[1738806493273,0.15845148,97120.0,97109.0,0.154465]
[1738806493683,0.15845148,97120.0,97105.0,0.205961]
[1738806493684,0.15845148,97120.0,97107.0,0.154467]
[1738806495471,0.15845148,97120.0,97107.0,0.205956]
[1738806495651,0.00400348,97120.0,97119.0,0.10272793]
[1738806495987,0.154438,97126.0,97119.0,0.10272793]
[1738806496190,0.205911,97130.0,97119.0,0.10272793]
[1738806496191,0.154446,97121.0,97119.0,0.00022428]
[1738806496406,0.08049134,97120.0,97119.0,0.00022428]
[1738806498709,0.18277551,97120.0,97119.0,0.00022428]
[1738806501560,0.13029134,97120.0,97119.0,0.00022428]
[1738806501728,0.00399134,97120.0,97119.0,0.00022428]
[1738806501931,0.154446,97121.0,97119.0,0.00022428]
[1738806502137,0.00399315,97120.0,97119.0,0.00022428]
[1738806503848,0.01308496,97120.0,97119.0,0.00022428]
[1738806504034,0.06195307,97120.0,97119.0,0.00022428]
[1738806504992,0.14445307,97120.0,97119.0,0.00022428]
[1738806506463,0.15362677,97120.0,97119.0,0.00022428]
[1738806508007,0.20262677,97120.0,97119.0,0.00022428]
[1738806509634,0.37697895,97120.0,97119.0,0.00022428]
[1738806510392,0.31901903,97120.0,97119.0,0.00022428]
[1738806511099,0.27001903,97120.0,97119.0,0.00022428]
[1738806511316,0.18751903,97120.0,97119.0,0.00022428]
[1738806512820,0.17834533,97120.0,97119.0,0.00022428]
[1738806515724,0.00399315,97120.0,97119.0,0.00022428]
[1738806517307,0.15844115,97120.0,97119.0,0.00022428]
[1738806521535,0.00399315,97120.0,97119.0,0.10272793]
[1738806521739,0.154443,97123.0,97119.0,0.10272793]
[1738806522055,0.154445,97122.0,97120.0,0.10250365]
[1738806522255,0.154448,97120.0,97119.0,0.00022428]
[1738806522549,0.232748,97120.0,97119.0,0.00022428]
[1738806522702,0.278448,97120.0,97119.0,0.00022428]
[1738806524364,0.27867228,97120.0,97119.0,0.00022428]
[1738806525944,0.45302446,97120.0,97119.0,0.00022428]
[1738806526178,0.54414043,97120.0,97119.0,0.00022428]
[1738806528293,0.69414043,97120.0,97119.0,0.00022428]
[1738806528727,0.82964408,97120.0,97119.0,0.00022428]
[1738806528964,0.3214,97119.0,97118.0,5.6e-07]
[1738806529183,0.42390365,97119.0,97118.0,5.6e-07]
[1738806529373,0.5264073,97119.0,97118.0,5.6e-07]
[1738806530057,0.28672,97119.0,97118.0,5.6e-07]
[1738806530451,0.13672,97119.0,97118.0,5.6e-07]
[1738806531932,0.0814,97119.0,97118.0,5.6e-07]
[1738806532064,0.16368947,97120.0,97118.0,5.6e-07]
[1738806536173,0.00398072,97119.0,97118.0,5.6e-07]
[1738806538211,0.02773049,97119.0,97118.0,5.6e-07]
[1738806538972,0.00398072,97119.0,97118.0,5.6e-07]
[1738806543060,0.00398072,97119.0,97118.0,0.10250421]
[1738806543439,0.00022428,97120.0,97118.0,0.10250421]
[1738806543757,0.15467328,97120.0,97119.0,0.10250365]
[1738806544865,0.00022428,97120.0,97119.0,0.10250365]
[1738806551221,0.00421371,97120.0,97119.0,0.10250365]
[1738806552193,0.00022428,97120.0,97119.0,0.10250365]
[1738806553062,0.00421407,97120.0,97119.0,0.10250365]
[1738806553269,0.00022428,97120.0,97119.0,0.10250365]
[1738806553474,0.00421407,97120.0,97119.0,0.10250365]
[1738806553627,0.00022428,97120.0,97119.0,0.10250365]
[1738806553833,0.00421407,97120.0,97119.0,0.10250365]
[1738806554817,0.154449,97119.0,97118.0,5.6e-07]
[1738806555012,0.1584395,97119.0,97118.0,5.6e-07]
[1738806558556,0.2066395,97119.0,97118.0,5.6e-07]
[1738806558767,0.2883395,97119.0,97118.0,5.6e-07]
[1738806558967,0.36755484,97119.0,97118.0,5.6e-07]
[1738806559884,0.36777912,97119.0,97118.0,5.6e-07]
[1738806560861,0.29771511,97119.0,97118.0,5.6e-07]
[1738806562571,0.30886976,97119.0,97085.0,0.00022428]
[1738806562752,0.30886976,97119.0,97085.0,0.00069012]
[1738806562753,0.234602,97086.0,97085.0,0.00069012]
[1738806563310,0.23858704,97086.0,97085.0,0.00069012]
[1738806563532,0.30848504,97086.0,97085.0,0.00069012]
[1738806563910,0.23858704,97086.0,97085.0,0.00069012]
[1738806566260,0.15848704,97086.0,97085.0,0.00069012]
[1738806566488,0.00398504,97086.0,97085.0,0.00069012]
[1738806567048,0.00397367,97086.0,97085.0,0.00069012]
[1738806571681,0.00397367,97086.0,97085.0,0.25769677]
[1738806571886,0.154495,97091.0,97085.0,0.10319377]
[1738806572093,0.154495,97091.0,97086.0,0.10250365]
[1738806572306,0.0497,97110.0,97088.0,0.154497]
[1738806572307,0.00397739,97090.0,97088.0,0.154497]
[1738806572511,0.00397739,97090.0,97089.0,0.10250365]
[1738806572736,0.154475,97103.0,97094.0,0.154488]
[1738806573068,0.15448,97100.0,97095.0,0.10250365]
[1738806573245,0.15844645,97102.0,97095.0,0.10250365]
[1738806573445,0.00396909,97099.0,97095.0,0.10250365]
[1738806573744,0.205958,97107.0,97095.0,0.10250365]
[1738806573947,0.00396897,97098.0,97095.0,0.10250365]
[1738806574142,0.154484,97098.0,97095.0,0.10250365]
[1738806574344,0.00396885,97097.0,97095.0,0.10250365]
[1738806575314,0.154472,97105.0,97095.0,0.25698965]
[1738806575617,0.00396957,97104.0,97095.0,0.10250365]
[1738806575829,0.00396957,97104.0,97096.0,0.154486]
[1738806576043,0.205951,97111.0,97097.0,0.10250365]
[1738806576231,0.00396945,97103.0,97098.0,0.154482]
[1738806576435,0.00396945,97103.0,97097.0,0.10250365]
[1738806576436,0.154469,97107.0,97099.0,0.25698365]
[1738806576660,0.00396933,97102.0,97099.0,0.25698365]
[1738806576861,0.154469,97107.0,97099.0,0.10250365]
[1738806577040,0.00396921,97101.0,97099.0,0.10250365]
[1738806577242,0.154471,97106.0,97099.0,0.10250365]
[1738806577548,0.00396909,97100.0,97099.0,0.10250365]
[1738806577873,0.154471,97106.0,97100.0,0.01903796]
[1738806578053,0.00929712,97117.0,97101.0,0.10250365]
[1738806578254,0.61639783,97116.0,97101.0,0.10250365]
[1738806578460,0.154475,97103.0,97101.0,0.10250365]
[1738806578755,0.669305,97103.0,97101.0,0.10250365]
[1738806581274,0.00397711,97102.0,97101.0,0.10250365]
[1738806581671,0.0768,97098.0,97086.0,0.15]
[1738806581875,0.11385528,97098.0,97087.0,0.10250365]
[1738806582077,0.11385528,97098.0,97085.0,0.00069012]
[1738806582078,0.1545,97087.0,97085.0,0.00069012]
[1738806582529,0.0768,97086.0,97085.0,0.00069012]
[1738806582727,0.08078172,97086.0,97085.0,0.00069012]
[1738806584509,0.59561172,97086.0,97085.0,0.00069012]
[1738806584733,0.69811537,97086.0,97085.0,0.00069012]
[1738806585268,0.59561172,97086.0,97085.0,0.00069012]
[1738806585687,0.60506202,97086.0,97085.0,0.00069012]
[1738806596730,0.65006202,97086.0,97085.0,0.00069012]
[1738806598465,0.77556567,97086.0,97085.0,0.00069012]
[1738806601714,1.10066567,97086.0,97085.0,0.00069012]
[1738806601934,1.20316932,97086.0,97085.0,0.00069012]
[1738806602146,1.36316932,97086.0,97085.0,0.00069012]
[1738806602986,1.36316932,97086.0,97085.0,1.2e-07]
[1738806604024,1.35316932,97086.0,97085.0,1.2e-07]
[1738806604389,1.26066567,97086.0,97085.0,1.2e-07]
[1738806604581,1.26266567,97086.0,97085.0,1.2e-07]
[1738806604739,1.26066567,97086.0,97085.0,1.2e-07]
[1738806605120,1.26566567,97086.0,97085.0,1.2e-07]
[1738806605734,0.98216202,97086.0,97085.0,1.2e-07]
[1738806605969,0.97516202,97086.0,97085.0,1.2e-07]
[1738806607189,0.97516202,97086.0,97085.0,0.00010702]
[1738806607571,0.97716202,97086.0,97085.0,0.00010702]
[1738806607776,1.07966567,97086.0,97085.0,0.00010702]
[1738806608037,1.07989017,97086.0,97085.0,0.00010702]
[1738806608895,1.07789017,97086.0,97085.0,0.00010702]
[1738806612081,1.10089017,97086.0,97085.0,0.00010702]
[1738806613085,0.51903622,97086.0,97085.0,0.10261067]
[1738806614279,0.51903622,97086.0,97085.0,0.12172795]
[1738806614761,0.5150545,97086.0,97085.0,0.12172795]
[1738806615187,0.51898405,97086.0,97085.0,0.12172795]
[1738806615612,0.51898405,97086.0,97085.0,0.10261067]
[1738806620422,0.51898405,97086.0,97085.0,0.33231067]
[1738806620788,0.51898405,97086.0,97085.0,0.36412285]
[1738806623008,0.51898405,97086.0,97085.0,0.37328542]
[1738806624314,0.51898405,97086.0,97085.0,0.42038542]
[1738806624475,0.51898405,97086.0,97085.0,0.74068542]
[1738806625276,0.51898405,97086.0,97085.0,0.75068542]
[1738806625483,0.45818027,97086.0,97085.0,0.74168542]
[1738806625687,0.45818027,97086.0,97085.0,0.76072573]
[1738806626087,0.00415405,97086.0,97085.0,0.76072573]
[1738806626313,0.0002245,97086.0,97085.0,0.76072573]
[1738806627311,0.08291659,97115.0,97085.0,0.76072573]
[1738806627312,0.08291659,97115.0,97114.0,0.383657]
[1738806627485,0.08291659,97115.0,97114.0,0.48616065]
[1738806627694,0.00022428,97118.0,97117.0,0.304452]
[1738806627898,0.00022428,97118.0,97117.0,0.40695565]
[1738806628866,0.00068937,97118.0,97117.0,0.40695565]
[1738806629114,0.00068937,97118.0,97117.0,0.45642388]
[1738806631853,0.00068937,97118.0,97117.0,0.46576069]
[1738806635132,0.00068937,97118.0,97117.0,0.15197188]
[1738806635329,0.00666188,97118.0,97117.0,0.30642388]
[1738806635490,0.00068937,97118.0,97117.0,0.15197188]
[1738806635695,0.00666188,97118.0,97117.0,0.04946823]
[1738806636835,0.00666188,97118.0,97107.0,0.04946823]
[1738806637038,0.00666188,97118.0,97108.0,0.10250365]
[1738806637244,0.00666188,97118.0,97111.0,0.15446]
[1738806637440,0.00666188,97118.0,97112.0,0.10250365]
[1738806637670,0.00666188,97118.0,97113.0,0.154458]
[1738806637841,0.00666188,97118.0,97114.0,0.25695965]
[1738806638027,0.00068937,97118.0,97114.0,0.10250365]
[1738806638228,0.0059734,97117.0,97114.0,0.10250365]
[1738806639142,0.0059734,97117.0,97115.0,0.154456]
[1738806639361,0.00068937,97118.0,97117.0,0.304452]
[1738806639560,0.00068937,97118.0,97117.0,0.40695565]
[1738806639978,0.00068937,97118.0,97117.0,0.45642388]
[1738806642810,0.00068937,97118.0,97117.0,0.30197188]
[1738806643728,0.00068937,97118.0,97117.0,0.04946823]
[1738806643923,0.08455531,97118.0,97117.0,0.04946823]
[1738806644474,0.08455531,97118.0,97117.0,0.01904031]
[1738806646853,0.00665531,97118.0,97117.0,0.01904031]
[1738806648009,0.00665531,97118.0,97117.0,0.12154396]
[1738806648460,0.00068937,97118.0,97117.0,0.12154396]
[1738806648716,0.00068937,97118.0,97117.0,0.15197188]
[1738806651104,0.00665198,97118.0,97117.0,0.15197188]
[1738806651390,0.00068937,97118.0,97117.0,0.15197188]
[1738806651844,0.00665196,97118.0,97117.0,0.15197188]
[1738806652439,0.08435196,97118.0,97117.0,0.04946823]